Cogmind - Beta 16 @@@ ROGUE MODE // 2025.11.11 @ 05:58:42 Player: J1ang-5h1 Result: Destroyed by UJ-VPG(R) with Subdweller Beam Cannon Performance ------------- Evolutions (0) 0 Regions Visited (2) 400 Robots Destroyed (33) 165 Value Destroyed (778) 778 Prototype IDs (1) 20 Alien Tech Used (0) 0 Bonus (0) 0 TOTAL SCORE: 1363 Bonus ------- None Cogmind --------- Core Integrity 0/250 Matter 255/300 Energy 200/200 System Corruption 2% Temperature Cool (9) Movement Rolling (107) Ox1 Location -10/Subcaves Parts ------- > --- POWER (1) -------- Subdweller Power Source > --- PROPULSION (2) --- Wheel Subdweller Monowheel > --- UTILITY (2) ------ Large Storage Unit Light Armor Plating > --- WEAPON (2) ------- Improved Assault Rifle Maul > --- INVENTORY (15) --- Subdweller Power Source Subdweller Monowheel Subdweller Optics Improved Terrain Scanner Seismic Detector Cobbler Unit Subdweller Laser Subdweller Beam Cannon Subdweller Beam Cannon Mini Grenade Launcher Mini Grenade Launcher Peak State ------------ > --- POWER ------------ Ion Engine > --- PROPULSION ------- Light Treads Light Treads > --- UTILITY ---------- Large Storage Unit Hardened Light Armor Plating > --- WEAPON ----------- Improved Assault Rifle Improved Assault Rifle > --- INVENTORY -------- Ion Engine Ion Engine Compact Wheel Improved Heat Sink Improved Terrain Scanner Seismic Detector Targeting Computer Targeting Computer Light Armor Plating Light Armor Plating Light Armor Plating Light Armor Plating Assault Rifle Improved Assault Rifle [Rating: 14] Favorites ----------- Power Ion Engine Engine Ion Engine Propulsion Light Treads Treads Light Treads Wheel Compact Wheel Utility Hardened Light Armor Plating Device Seismic Detector Storage Large Storage Unit Protection Hardened Light Armor Plating Weapon Improved Assault Rifle Energy Gun Subdweller Laser Ballistic Gun Improved Assault Rifle Launcher Mini Grenade Launcher Impact Weapon Maul Build | -11 -10 -10 ------- Run | Yrd Mat Sub Slots Evolved . | . . . Power . | . . . Propulsion . | . . . Utility . | . . . Weapon . | . . . Parts Attached 29 | 7 12 10 Power 6 | 1 3 2 Engine 6 | 1 3 2 Core . | . . . Reactor . | . . . Propulsion 8 | 1 3 4 Treads 2 | . 2 . Leg . | . . . Wheel 6 | 1 1 4 Hover . | . . . Flight . | . . . Utility 6 | 2 3 1 Device 1 | 1 . . Storage 3 | 1 2 . Processor . | . . . Hackware . | . . . Protection 2 | . 1 1 Artifact . | . . . Weapon 9 | 3 3 3 Energy Gun 2 | 1 . 1 Energy Cannon . | . . . Ballistic Gun 5 | 2 3 . Ballistic Cannon . | . . . Launcher 1 | . . 1 Special Weapon . | . . . Impact Weapon 1 | . . 1 Slashing Weapon . | . . . Piercing Weapon . | . . . Special Melee Weapon . | . . . Unidentified Prototypes 1 | . 1 . Parts Lost 6 | . 2 4 Power 3 | . 2 1 Propulsion 2 | . . 2 Utility 1 | . . 1 Weapon . | . . . Highest Loss Streak 3 | . 1 3 To Critical Strikes . | . . . Average Backups 11 | 6 9 14 Power 1 | . . 1 Propulsion 1 | 3 1 2 Utility 5 | 1 5 5 Weapon 3 | . 2 5 Tool/Special . | . . . Unused Backups 22 | 1 5 16 Power 1 | . . 1 Propulsion 3 | 1 . 2 Utility 12 | . 4 8 Weapon 6 | . 1 5 Tool/Special . | . . . Average Slot Usage (%) 98 | . 98 99 Engine 13 | . 12 14 Treads 23 | . 25 21 Wheel 3 | . 2 5 Storage 14 | . 14 14 Protection 13 | . 12 13 Ballistic Gun 24 | . 27 18 Impact Weapon 2 | . . 6 Peak Build Rating 14 | 7 14 14 Average Rating 12 | 5 12 13 On Entrance 7 | . 7 14 Avg Prop Armor Cover (%) 3 | . . 3 Naked Turns . | . . . Heaviest Build 37 | 15 36 37 Greatest Support 40 | 16 40 40 Greatest Overweight (x) 3 | 1 . 3 Average Overweight (x) . | . . . Largest Inventory Capacity 15 | 8 15 15 Average Capacity 12 | 7 11 15 Most Carried 15 | 8 15 15 Average Carried 11 | 6 9 14 Final Capacity 15 | 8 15 15 Final Carried 15 | 8 15 12 Class Distribution -------------------- 100% | Mutant Dominant Class ---------------- Mutant | -10/Materials Mutant | -10/Subcaves Resources | -11 -10 -10 ----------- Run | Yrd Mat Sub Matter Collected 1070 | 336 441 293 Remotely . | . . . Salvage Created 1152 | 234 666 252 Parts 65 | 18 36 11 Haulers Intercepted 2 | . 2 . Recyclers Shooed . | . . . Parts Field Recycled . | . . . Retrieved Matter . | . . . Parts Self-Destructed . | . . . Prevented . | . . . Parts Restored . | . . . Kills | -11 -10 -10 ------- Run | Yrd Mat Sub Combat Hostiles Destroyed 19 | . 12 7 Melee 1 | . . 1 Guns 15 | . 12 3 AOE 2 | . . 2 Classes Destroyed 8 | 3 3 2 Worker 3 | 2 1 . Tunneler 6 | 5 1 . Hauler 2 | . 2 . Recycler 2 | 1 1 . Watcher 1 | . 1 . Grunt 12 | . 12 . Artisan 1 | . . 1 Subdweller 7 | . . 7 Best Kill Streak 8 | 8 3 3 Combat Bots Only 3 | . 3 3 Max Kills in Single Turn 2 | 1 2 1 Gunslinging 1 | . 1 . Exploded 1 | . . 1 Melee 1 | . . 1 Uniques/NPCs Destroyed . | . . . Combat | -11 -10 -10 -------- Run | Yrd Mat Sub Hostile Shots Fired 112 | . 62 50 Missed 26 | . 12 14 Hits 86 | . 50 36 Projectile 86 | . 50 36 Damage Taken 1614 | . 705 909 Core 270 | . 32 238 Absorbed by Shields . | . . . Regen/Repaired (Parts) 134 | . 134 . Core Remaining (%) 100 | 100 . . Volleys Fired 92 | 11 47 34 Largest 2 | 2 2 2 Hottest 83 | 40 46 83 Shots Fired 170 | 22 98 50 Gun 165 | 22 98 45 Cannon . | . . . Launcher 5 | . . 5 Special . | . . . Kinetic 157 | 22 98 37 Thermal 8 | . . 8 Explosive 5 | . . 5 Electromagnetic . | . . . Robot Hit Streak 65 | 4 19 65 Robot Miss Streak 3 | 1 3 . Penetration Max . | . . . Secondary Targets 3 | . 3 . Max Gunslinging Chain 1 | . 1 . Shots Hit Robots 138 | 12 74 52 Core Hits 48 | 9 25 14 Critical Kills . | . . . Critical Parts Destroyed 2 | . . 2 Critical Strikes 2 | . . 2 Destroy 1 | . . 1 Smash 1 | . . 1 Melee Attacks 20 | . . 20 Impact 20 | . . 20 Slashing . | . . . Piercing . | . . . Sneak Attacks 1 | . . 1 Combat Hostiles . | . . . Follow-up Attacks . | . . . Damage Inflicted 2850 | 171 1135 1544 Guns 1969 | 171 1135 663 Cannons . | . . . Explosions 596 | . . 596 Melee 285 | . . 285 Ramming . | . . . Kinetic 1808 | 171 1135 502 Thermal 161 | . . 161 Explosive 596 | . . 596 Electromagnetic . | . . . Impact 285 | . . 285 Slashing . | . . . Piercing . | . . . Highest Corruption 2 | . 2 2 Average Corruption 1 | . 1 2 Corruption Purged . | . . . Corruption Blocked . | . . . Effects 33 | . 17 16 Message Errors 6 | . 3 3 Matter Fused 6 | . 2 4 Heat Flow Errors 3 | . 3 . Energy Discharges 3 | . 2 1 Data Loss (minor) 1 | . 1 . Data Loss (major) 2 | . 1 1 Misfires 5 | . 4 1 Alerts 5 | . 1 4 Weapon Failures 2 | . . 2 Overload Shots . | . . . Overflow Damage 71 | . . 71 Projectiles . | . . . Explosions 15 | . . 15 Melee 56 | . . 56 Knockbacks 1 | . . 1 Impact 1 | . . 1 Kinetic . | . . . Secondary . | . . . Self-Inflicted Damage 52 | . . 52 Shots 3 | . . 3 Rammed . | . . . Targets Rammed . | . . . Kicked . | . . . Crushed . | . . . Highest Temperature 145 | . 145 . Average Temperature 39 | . 39 . Received Heat Transfer 543 | . 309 234 Siege Activations . | . . . Martial Activations . | . . . Shielding Activations . | . . . Robots Disrupted . | . . . Combat Hostiles . | . . . Robots Corrupted 1 | . . 1 Combat Hostiles 1 | . . 1 Parts Fried 2 | . 1 1 Impact Corruptions 2 | . . 2 Robots Melted . | . . . Combat Hostiles . | . . . Parts Melted . | . . . Heat Transferred 200 | . . 200 Parts Sabotaged . | . . . Parts Stolen . | . . . Parts Stripped . | . . . Power Chain Reactions . | . . . Alert | -11 -10 -10 ------- Run | Yrd Mat Sub Maximum Alert Level . | . . . Low Security (%) 100 | 100 100 . Level 1 . | . . . Level 2 . | . . . Level 3 . | . . . Level 4 . | . . . Level 5 . | . . . High Security . | . . . Max Security . | . . . Peak Influence 94 | 10 94 . Initial . | . . . Average 19 | 2 20 . Influence Increases 424 | 40 384 . Destroy 0b10 Robot/C 240 | . 240 . Destroy 0b10 Robot/NC 70 | 40 30 . Destroy Leader 46 | . 46 . Successful Hack 20 | . 20 . Select Force Hacks 30 | . 30 . Destroy Structure 3 | . 3 . Lose Combat Pursuer 15 | . 15 . Influence Decreases 424 | 40 384 . Time Decay 404 | 40 364 . Lost Part 20 | . 20 . Squads Dispatched 4 | . 4 . Investigation 4 | . 4 . Extermination . | . . . Reinforcement . | . . . Assault . | . . . Garrison . | . . . Intercept . | . . . Searches Triggered . | . . . Construction Impeded . | . . . Haulers Reinforced . | . . . Active Scanning Responses . | . . . Cargo Convoy Interrupts . | . . . Stealth | -11 -10 -10 --------- Run | Yrd Mat Sub Distress Signals 1 | . 1 . Communications Jammed . | . . . Distress Signals . | . . . Times Spotted 25 | . 14 11 Peak Tracking Total 3 | . 3 3 Tactical Retreats 3 | . 1 2 Traps | -11 -10 -10 ------- Run | Yrd Mat Sub Traps Triggered 4 | . 4 . Indirectly . | . . . Trap Hack Attempts . | . . . Triggered . | . . . Disarmed . | . . . Reprogrammed 1 | . 1 . Reused . | . . . Traps Extracted . | . . . Installed . | . . . Triggered . | . . . Machines | -11 -10 -10 ---------- Run | Yrd Mat Sub Machines Disabled . | . . . Max in Single Turn . | . . . Machines Repaired . | . . . Machines Dismantled . | . . . Machines Sabotaged . | . . . Overloaded Fab Kills . | . . . Hacking | -11 -10 -10 --------- Run | Yrd Mat Sub Machines Accessed 11 | . 11 . Terminals 8 | . 8 . Fabricators . | . . . Repair Stations 1 | . 1 . Recycling Units 2 | . 2 . Scanalyzers . | . . . Garrison Access . | . . . Total Hacks 44 | . 44 . Successful 26 | . 26 . Failed 18 | . 18 . Catastrophic 1 | . 1 . Database Lockouts . | . . . Manual 27 | . 27 . Terminals 35 | . 35 . Fabricators . | . . . Repair Stations 2 | . 2 . Recycling Units 7 | . 7 . Scanalyzers . | . . . Garrison Access . | . . . Terminal Hacks 9 | . 9 . Robot Analysis 2 | . 2 . Locate Traps 1 | . 1 . Reprogram Traps 1 | . 1 . Dispatch Records 1 | . 1 . Maintenance Status 1 | . 1 . Patrol Status 1 | . 1 . Hauler Manifests 1 | . 1 . Registered Components 1 | . 1 . Fabricator Hacks . | . . . Repair Station Hacks 2 | . 2 . Scan Component 1 | . 1 . Repair 1 | . 1 . Recycling Unit Hacks 3 | . 3 . Report Inventory 2 | . 2 . Retrieve Components 1 | . 1 . Scanalyzer . | . . . Garrison Access Hacks . | . . . Unauthorized Hacks 12 | . 12 . Terminals 9 | . 9 . Botnet 3 | . 3 . Skim 6 | . 6 . Fabricators . | . . . Repair Stations . | . . . Recycling Units 3 | . 3 . Reject 1 | . 1 . Mask 1 | . 1 . Tunnel 1 | . 1 . Scanalyzers . | . . . Garrison Access . | . . . Data Cores Recovered . | . . . Used . | . . . Hacking Detections 10 | . 10 . Full Trace Events 1 | . 1 . Feedback Events . | . . . Feedback Blocked . | . . . Robot Schematics Acquired . | . . . Robots Built . | . . . Authchips . | . . . Time . | . . . Total Robot Build Rating . | . . . Part Schematics Acquired . | . . . Parts Built . | . . . Authchips . | . . . Time . | . . . Total Part Build Rating . | . . . Part Studies Acquired . | . . . Parts Repaired 1 | . 1 . Time 51 | . 51 . Parts Recycled . | . . . Recycled Matter . | . . . Retrieved Matter . | . . . Retrieved Components 10 | . 10 . Parts Scanalyzed . | . . . Part Schematics Acquired . | . . . Parts Damaged . | . . . Bothacking | -11 -10 -10 ------------ Run | Yrd Mat Sub Used RIF Installer . | . . . Robots Hacked . | . . . Non-combat . | . . . Combat . | . . . Robot Hacks Applied . | . . . Relay Couplers Released . | . . . Fabnet Peak Effective % . | . . . Robots Rewired . | . . . Allies Hacked . | . . . Hacks Repelled . | . . . Allies | -11 -10 -10 -------- Run | Yrd Mat Sub Total Allies . | . . . Largest Group . | . . . Highest-Rated Group . | . . . Highest-Rated Ally . | . . . Total Orders . | . . . Ally Attacks . | . . . Total Damage . | . . . Kills . | . . . Allies Corrupted . | . . . Allies Melted . | . . . Intel | -11 -10 -10 ------- Run | Yrd Mat Sub Active Infowar (turns) 187 | 67 119 1 Seismic 187 | 67 119 1 Robot Analysis Total 2 | . 2 . Derelict Logs Recovered 1 | . . 1 Drone Launches . | . . . Drone Recoveries . | . . . Exploration | -11 -10 -10 ------------- Run | Yrd Mat Sub Turns Passed 2689 | 131 1549 1009 Spaces Moved 1469 | 80 849 540 Core 14 | 14 . . Treads 1164 | . 747 417 Legs . | . . . Wheels 291 | 66 102 123 Hover . | . . . Flight . | . . . Fastest Speed 50 | 50 100 107 Average Speed 148 | 95 152 149 Slowest Speed 160 | 100 160 160 Overloaded Moves . | . . . Propulsion Burnouts . | . . . Robots Hopped . | . . . Potential Cave-ins . | . . . Cave-ins Triggered . | . . . Exploration Rate (%) 43 | 4 98 28 Regions Visited 2 Branch Regions 1 Pre-discovered Areas 3 | . 2 1 Known Exits Taken . | . . . Unknown Exits Taken 2 | 1 1 . Scrap Searched 7 | . . 7 Spaces Dug . | . . . Terrain Destroyed 36 | . . 36 Melee . | . . . Projectile . | . . . AOE 36 | . . 36 Terrain Rammed . | . . . Walls Destroyed . | . . . Machines Disabled . | . . . Actions | -11 -10 -10 --------- Run | Yrd Mat Sub Total 1773 | 111 1009 653 Wait 76 | . 62 14 Move 1467 | 79 848 540 Hop . | . . . Pick Up 50 | 12 24 14 Fast Attach 4 | 3 1 . Attach 14 | 4 5 5 Detach 1 | 1 . . Swap 20 | . 8 12 Drop 29 | 1 14 14 Fire 92 | 11 47 34 Melee 20 | . . 20 Ram . | . . . Kick . | . . . Crush . | . . . Escape Stasis . | . . . Rewire . | . . . Trap . | . . . Miscellaneous . | . . . Route ------- -11/Scrapyard -10/Materials (discovered 5 exits: [*Mat x3] / [*Min] / [*Sub]) -10/Subcaves (discovered 1 exit: [*Mat]) History --------- Turn | Location | Event 15 | -11/Scrapyard | Discovered new exit (range 15) 132 | -11/Scrapyard | Entered Materials 133 | -10/Materials | Met a group of wandering Federalists 335 | -10/Materials | Build established: Mutant 398 | -10/Materials | Discovered new exit (range 11) 398 | -10/Materials | Discovered new exit (range 7) 786 | -10/Materials | Discovered new exit (range 4) 926 | -10/Materials | Repaired Imp. Assault Rifle 1240 | -10/Materials | Discovered new exit (range 15) 1374 | -10/Materials | Discovered new exit (range 8) 1400 | -10/Materials | Loaded intel: 4 trap records 1430 | -10/Materials | Learned Storage emergency access door positions 1451 | -10/Materials | Learned location of Storage (-7) 1681 | -10/Materials | Entered Subcaves 1682 | -10/Subcaves | Continued accompanying wandering Federalists (6) 1682 | -10/Subcaves | Approached by a straggling Scientist 1705 | -10/Subcaves | Discovered new exit (range 15) 1784 | -10/Subcaves | Lost 4 allies 2017 | -10/Subcaves | Shifting Twisted Machinery released Flamer 2024 | -10/Subcaves | A swath of the cavern ceiling suddenly collapsed 2158 | -10/Subcaves | Shifting Twisted Machinery released Sub. Laser 2226 | -10/Subcaves | Disturbed a concealed Subdweller 2435 | -10/Subcaves | Shifting Twisted Machinery released Barrage Gun 2510 | -10/Subcaves | Lost 3 parts (2n1u) 2573 | -10/Subcaves | Core integrity fell below 50% 2638 | -10/Subcaves | Learned location of Zion (-6) 2665 | -10/Subcaves | Disturbed a concealed Subdweller 2685 | -10/Subcaves | Core integrity fell below 20% 2690 | -10/Subcaves | Destroyed by UJ-VPG(R) with Subdweller Beam Cannon Last Messages --------------- 02649_ Found Sub. Machine Gun. 02649_ Found Battle Rifle. 02649_ Found 70 Matter. 02650_ Acquired 54 matter. 02653_ Searching scrap... 02653_ Found Mak. Thermal Plating. 02653_ Found Mak. Hacking Suite. 02653_ Found 57 Matter. 02658_ Searching scrap... 02658_ Found Hvy. Battle Rifle. 02658_ Found Barrage Gun. 02658_ Found 32 Matter. 02663_ Dropped Broken Sub. Monowheel. 02665_ UJ-VPG(R) angrily emerges from the Twisted Machinery. 02669_ System corrupted: Imp. Assault Rifle jammed. 02670_ Ion Engine destroyed. 02688_ System corrupted: Imp. Assault Rifle jammed. Map ----- +----------------------------------------------------+ | | | | | | | | | | | | | | | | | | | | | | | | | | | | | | | ?????????????????????????????????????????????????? | | ?????????????????????????????????????????????????? | | ?????????????????????????????????????????????????? | | ?????????????????????????????????????????????????? | | ?????????????????????????????????????????????????? | | ?????????????????????????????????????????????????? | | ?????????????????????????????????????????????????? | | ?????????????????????????????????????????????????? | | ?????????????????????#######?????????????????????? | | ?????????????????????#[[#%=#?????????????????????? | | ?????????????????????#% !@=#?????????????????????? | | ?????????????????????###& ##?????????????????????? | | ??????????????????????#R[###?????????????????????? | | ?#???????????????????###[# #?????????????????????? | | ## ???###???????????## < " ###???????????????????? | | # #### #?########### #???????????????????? | | ## ## ### ## # #???????????????????? | | ### ##???????????????????? | | # ### # ## #????????????????????? | | #### ## ##? ???????????????????? | | #?# ######??? ??????????????????? | | # #???????? # #?????????????????? | | ## ########## # # #?????????###?????????????????? | | ?###?????????#######?????????????????????????????? | | ?????????????????????????????????????????????????? | | ?????????????????????????????????????????????????? | | ?????????????????????????????????????????????????? | | ?????????????????????????????????????????????????? | | ?????????????????????????????????????????????????? | | ?????????????????????????????????????????????????? | | ?????????????????????????????????????????????????? | | ?????????????????????????????????????????????????? | | ?????????????????????????????????????????????????? | | ?????????????????????????????????????????????????? | | ?????????????????????????????????????????????????? | +----------------------------------------------------+ Best States ------------- Heat Dissipation 25 Energy Generation 15 Energy Capacity 250 Matter Stores 300 Matter Capacity 300 Sight Range 16 Terrain Scan Density 10 Armor Coverage 150 Evasion (%) 40 Recoil Reduction 2 Item Schematics ----------------- None Robot Schematics ------------------ None Fabricated ------------ Nothing Repaired ---------- Imp. Assault Rifle | 4% | -10/Materials Studied --------- None Alien Tech Used ----------------- None Achievements -------------- Strength In Numbers Challenges ------------ None Game ------ Seed SuspensionRocketLauncher Manual? 0 Play Time 00:22:28 Cumulative 381.9 hours Start 2025.11.11 @ 05:36:26 End 2025.11.11 @ 05:58:42 Sessions 1 Manual Loads 0 Difficulty Rogue Special Mode None Game No. 272 Rogue 262 Adventurer 0 Explorer 10 Win Type - Total 5 Types 5/0/0/0/0/0/0/0/0/0 Lore% 80 Gallery% 68 Achievement% 39 Wizard Run 0 Options --------- Layout 2 ASCII 0 Keyboard 0 Movement Arrows Keybinds 1 Fullscreen 1 Font 24/Smallcaps Map View 50x44 Zoom Use 0% Tactical HUD 1 Map Filters NONE Filters NONE Steam 1 RUN: c16d9046-3699-4921-97c7-214ca2858b74